fUST/lending_fUST_20250911
["ID","MTS","AMOUNT","RATE_DAILY","PERIOD"]
[384806734,1757562651922,-295.6812302,0.00014712,2]
[384806735,1757562651934,-584.2322145,0.00014712,2]
[384806736,1757562651947,-295.6812302,0.00014712,2]
[384806737,1757562651959,-584.2322145,0.00014712,2]
[384806738,1757562651972,-161.7241878,0.00014712,2]
[384806739,1757562651984,-584.2322145,0.00014712,2]
[384806740,1757562651996,-161.7241878,0.00014712,2]
[384806741,1757562652008,-584.2322145,0.00014712,2]
[384806742,1757562652020,-584.2322145,0.00014712,2]
[384806743,1757562652033,-584.2322145,0.00014712,2]
[384806744,1757562652044,-584.2322145,0.00014712,2]
[384806745,1757562652056,-153.0,0.00014712,2]
[384806746,1757562652068,-584.2322145,0.00014712,2]
[384806747,1757562652080,-5087.29,0.00014741,2]
[384806748,1757562652093,-480.0,0.00014742,2]
[384806749,1757562652105,-577.57,0.00014742,2]
[384806750,1757562652118,-514.9,0.00014742,2]
[384806751,1757562652130,-943.59,0.00014744,2]
[384806752,1757562652142,-480.0,0.00014744,2]
[384806753,1757562652155,-667.79,0.00014744,2]
[384806754,1757562652168,-232.39,0.00014744,2]
[384806755,1757562652180,-480.0,0.00014744,2]
[384806756,1757562652192,-655.35,0.00014744,2]
[384806757,1757562652205,-480.0,0.00014745,2]
[384806758,1757562652214,-480.0,0.00014745,2]
[384806759,1757562652224,-480.0,0.00014745,2]
[384806760,1757562652233,-548.56,0.00014745,2]
[384806761,1757562652243,-1108.41,0.00014745,2]
[384806762,1757562652252,-489.92,0.00014745,2]
[384806763,1757562652262,-171.05,0.00014745,2]
[384806764,1757562652271,-2343.53,0.00014745,2]
[384806765,1757562652281,-897.22,0.00014747,2]
[384806766,1757562652290,-2327.58,0.00014747,2]
[384806767,1757562652300,-488.24,0.00014747,2]
[384806768,1757562652309,-480.0,0.00014747,2]
[384806769,1757562652319,-808.39937187,0.00014749,2]
[384806770,1757562652328,-480.0,0.00014749,2]
[384806771,1757562652337,-651.46,0.00014749,2]
[384806772,1757562652347,-480.0,0.00014749,2]
[384806773,1757562652356,-480.0,0.00014749,2]
[384806774,1757562652366,-480.0,0.00014749,2]
[384806775,1757562652375,-484.84012704,0.00014749,2]
[384806776,1757562652387,-441.31520339,0.00014749,2]
[384806777,1757562652397,-488.71766932,0.00014749,2]
[384806778,1757562652407,-480.0,0.00014749,2]
[384806779,1757562652416,-484.51986859,0.00014749,2]
[384806780,1757562652425,-486.46153993,0.00014749,2]
[384806781,1757562652435,-487.09605386,0.00014749,2]
[384806782,1757562652568,-480.0,0.00014749,2]
[384806783,1757562652612,-480.0,0.00014749,2]
[384806784,1757562652625,-152.71620845,0.00014749,2]
[384806785,1757562652635,-480.0,0.00014749,2]
[384806786,1757562652644,-480.0,0.00014749,2]
[384806787,1757562652654,-480.0,0.00014749,2]
[384806788,1757562652663,-480.0,0.00014749,2]
[384806789,1757562652673,-480.0,0.00014749,2]
[384806790,1757562652685,-492.72334739,0.00014749,2]
[384806791,1757562652694,-480.0,0.00014749,2]
[384806792,1757562652703,-500.0,0.00014755,2]
[384806793,1757562652712,-502.23434305,0.00014755,2]
[384806794,1757562652722,-500.0,0.00014755,2]
[384806795,1757562652732,-500.0,0.00014755,2]
[384806796,1757562652739,-278.32974631,0.00014755,2]
[384806797,1757562652749,-157.0,0.00014778,2]
[384806798,1757562652759,-187.46355603,0.00014778,2]
[384806799,1757562652768,-157.0,0.00014778,2]
[384806800,1757562652778,-187.0833653,0.00014778,2]
[384806801,1757562652788,-188.20339131,0.00014778,2]
[384806802,1757562652797,-500.0,0.00014778,2]
[384806803,1757562652807,-500.0,0.00014778,2]
[384806804,1757562652816,-157.0,0.00014778,2]
[384806805,1757562652825,-168.0,0.00014782,2]
[384806806,1757562652834,-500.0,0.0001479,2]
[384806807,1757562652844,-501.22414057,0.0001479,2]
[384806808,1757562652853,-500.0,0.0001479,2]
[384806809,1757562652863,-168.0,0.00014793,2]
[384806810,1757562652873,-552.13497463,0.000148,2]
[384806811,1757562652883,-500.0,0.0001481,2]
[384806812,1757562652892,-500.0,0.0001481,2]
[384806813,1757562652903,-4000.0,0.00014822,2]
[384806814,1757562652912,-398.83215756,0.0001484,2]
[384806815,1757562652921,-500.0,0.0001484,2]
[384806816,1757562652931,-501.12176764,0.0001484,2]
[384806817,1757562652940,-2788.64194352,0.0001485,2]
[384806818,1757562652949,-168.0,0.00014867,2]
[384806819,1757562652959,-168.0,0.00014889,2]
[384806820,1757562652968,-446.09231929,0.000149,2]
[384806821,1757562652978,-160.0,0.00014919,2]
[384806822,1757562652987,-168.0,0.00014974,2]
[384806823,1757562652996,-10708.77449184,0.00015,2]
[384806824,1757562653006,-151.0,0.00015,2]
[384806825,1757562653015,-160.0,0.00015,2]
[384806826,1757562653025,-5087.29,0.00015015,2]
[384806827,1757562653034,-480.0,0.00015016,2]
[384806828,1757562653043,-577.57,0.00015016,2]
[384806829,1757562653053,-514.9,0.00015016,2]
[384806830,1757562653062,-943.59,0.00015018,2]
[384806831,1757562653072,-480.0,0.00015018,2]
[384806832,1757562653082,-667.79,0.00015018,2]
[384806833,1757562653092,-480.0,0.00015018,2]
[384806834,1757562653101,-655.35,0.00015018,2]
[384806835,1757562653110,-480.0,0.00015019,2]
[384806836,1757562653119,-480.0,0.00015019,2]
[384806837,1757562653129,-480.0,0.00015019,2]
[384806838,1757562653138,-548.56,0.00015019,2]
[384806839,1757562653147,-1108.41,0.00015019,2]
[384806840,1757562653157,-489.92,0.00015019,2]
[384806841,1757562653166,-2343.53,0.00015019,2]
[384806842,1757562653177,-501.81661807,0.00015021,2]
[384806843,1757562653186,-505.11125708,0.00015021,2]
[384806844,1757562653196,-897.22,0.00015021,2]
[384806845,1757562653205,-2327.58,0.00015021,2]
[384806846,1757562653215,-488.24,0.00015021,2]
[384806847,1757562653225,-480.0,0.00015021,2]
[384806848,1757562653234,-651.46,0.00015023,2]
[384806849,1757562653243,-480.0,0.00015023,2]
[384806850,1757562653253,-480.0,0.00015023,2]
[384806851,1757562653263,-480.0,0.00015023,2]
[384806852,1757562653273,-568.98007251,0.00015023,2]
[384806853,1757562653286,-376.07,0.00015023,2]
[384806854,1757562653296,-480.0,0.00015023,2]
[384806855,1757562653306,-480.0,0.00015023,2]
[384806856,1757562653315,-28368.81243738,0.00015023,2]
[384806857,1757562653327,-216.98022878,0.00015052,2]
[384806858,1757562653336,-215.72571405,0.00015052,2]
[384806859,1757562653346,-500.0,0.00015052,2]
[384806860,1757562653355,-223.94255692,0.00015052,2]
[384806861,1757562653364,-213.51547997,0.00015052,2]
[384806862,1757562653374,-345.839892,0.00015068,2]
[384806863,1757562653383,-500.0,0.00015068,2]
[384806864,1757562653393,-746.99767804,0.00015072,2]
[384806865,1757562653403,-1000.0,0.00015072,2]
[384806866,1757562653412,-502.90167363,0.00015072,2]
[384806867,1757562653421,-1000.0,0.00015086,2]
[384806868,1757562653431,-500.0,0.00015162,2]
[384806869,1757562653440,-500.0,0.00015162,2]
[384806870,1757562653449,-501.24587139,0.0001517,2]
[384806871,1757562653459,-1000.0,0.0001517,2]
[384806872,1757562653468,-1000.0,0.00015178,2]
[384806873,1757562653477,-1000.77189138,0.00015178,2]
[384806874,1757562653486,-1000.0,0.00015178,2]
[384806875,1757562653496,-151.0,0.000152,2]
[384806876,1757562653506,-161.7241878,0.00015205,2]
[384806877,1757562653515,-161.7241878,0.00015205,2]
[384806878,1757562653525,-161.7241878,0.00015205,2]
[384806879,1757562653535,-420.0,0.00015249,2]
[384806880,1757562653544,-160.4403857,0.0001526,2]
[384806881,1757562653554,-5087.29,0.00015289,2]
[384806882,1757562653563,-465.75634973,0.0001529,2]
[384806883,1757562653984,-511.89262954,0.00013922,2]
[384806884,1757562653995,-480.0,0.00013927,2]
[384806885,1757562654005,-480.0,0.00014197,2]
[384806886,1757562654015,-79.48737046,0.00014471,2]
[384806887,1757562655283,-151.0,0.00013923,2]
[384806888,1757562655293,-480.0,0.00013927,2]
[384806889,1757562655303,-503.53635876,0.00013927,2]
[384806890,1757562655313,-151.0,0.00013927,2]
[384806891,1757562655323,-485.19074899,0.00014201,2]
[384806892,1757562655332,-400.51262954,0.00014471,2]
[384806893,1757562655342,-161.7241878,0.000146,2]
[384806894,1757562655352,-584.2322145,0.00014712,2]
[384806895,1757562655362,-480.0,0.00014745,2]
[384806896,1757562655371,-480.0,0.00015019,2]
[384806897,1757562655381,-54.39304094,0.0001529,2]
[384806898,1757562655391,-577.57,0.0001529,2]
[384806899,1757562655400,-514.9,0.0001529,2]
[384806900,1757562655410,-496.47431321,0.00015292,2]
[384806901,1757562655419,-50.98818016,0.00015292,2]
[384806902,1757562655431,-616.80181984,0.00015292,2]
[384806903,1757562655441,-163.86139661,0.00015292,2]
[384806904,1757562655451,-238.30369725,0.00015292,2]
[384806905,1757562655841,250.0,0.00013307,2]
[384806906,1757562668118,1654.5,0.00024,30]
[384806907,1757562771874,1000.0,0.00018894,20]
[384806908,1757562798590,1000.0,0.00018894,20]
[384806909,1757562816038,300.0,0.00013778,2]
[384806910,1757562849926,300.0,0.00013778,2]
[384806911,1757562855704,441.89624605,0.00013822,2]
[384806912,1757562856798,1274.1435192,0.00013024,2]
[384806913,1757562879440,1260.93575632,0.00013778,2]
[384806915,1757562907818,1500.0,0.00013777,2]
[384806916,1757562934819,1500.0,0.00013777,2]
[384806917,1757562941250,973.0,0.00027397,120]
[384806918,1757562942640,529.25,0.00012329,2]
[384806919,1757562953120,546.9,0.00012329,2]
[384806920,1757562963410,1200.0,0.00013777,2]
[384806921,1757562991790,-1325.99929458,0.00013777,2]
[384806922,1757563015068,596.45,0.00012329,2]
[384806924,1757563025863,819.33,0.00012329,2]
[384806925,1757563036247,402.95,0.00012329,2]
[384806928,1757563055927,386.65921525,0.0001382,2]
[384806929,1757563057289,152.63,0.00012329,2]
[384806930,1757563067710,763.17,0.00012329,2]
[384806935,1757563263065,338.32681337,0.00013818,2]
[384806937,1757563326155,1246.22357282,0.00013775,2]
[384806938,1757563334943,1246.22357282,0.00013775,2]
[384806939,1757563344931,1246.22357282,0.00013775,2]
[384806940,1757563354526,1246.22357282,0.00013775,2]
[384806941,1757563363584,1246.22357282,0.00013775,2]
[384806942,1757563372362,1246.22357282,0.00013775,2]
[384806943,1757563376453,209.201577,0.00013699,2]
[384806944,1757563389618,300.0,0.00013774,2]
[384806945,1757563399361,300.0,0.00013774,2]
[384806946,1757563418742,300.0,0.00013774,2]
[384806947,1757563428704,300.0,0.00013774,2]
[384806948,1757563456490,300.0,0.00013774,2]
[384806949,1757563463170,60658.47540137,0.00024,30]
[384806950,1757563469948,351.47913414,0.00013815,2]
[384806951,1757563475496,300.0,0.00013774,2]
[384806952,1757563485924,300.0,0.00013774,2]
[384806953,1757563503384,165.44879209,0.00013774,2]
[384806954,1757563513068,244.07324488,0.00013774,2]
[384806955,1757563529361,168.0,0.00013774,2]
[384806956,1757563539117,-336.0,0.00013774,2]
[384806957,1757563580072,213.738432,0.00013495,2]
[384806958,1757563580686,347.940682,0.00013496,2]
[384806959,1757563581196,605.26444368,0.00013496,2]
[384806960,1757563581888,302.63222184,0.00013496,2]
[384806961,1757563588045,168.0,0.00013773,2]
[384806962,1757563613996,226.82805183,0.00013773,2]
[384806964,1757563633063,226.82805183,0.00013773,2]
[384806965,1757563641177,226.82805183,0.00013773,2]
[384806966,1757563650451,1673.18516612,0.00013826,2]
[384806967,1757563659274,172.66514379,0.00013773,2]
[384806968,1757563668476,218.34389634,0.00013773,2]
[384806969,1757563677060,330.18353781,0.00013813,2]
[384806970,1757563713291,168.0,0.00013773,2]
[384806971,1757563722454,168.0,0.00013773,2]
[384806972,1757563763383,226.82805183,0.00013772,2]
[384806973,1757563790737,226.82805183,0.00013772,2]
[384806974,1757563816870,218.34389634,0.00013772,2]
[384807008,1757563832465,-300.0,0.00013911,2]
[384807011,1757563832475,-474.39209301,0.00013911,2]
[384807019,1757563832518,-363.42880317,0.00013911,2]
[384807025,1757563832573,-362.17910382,0.00013911,2]
[384807026,1757563832582,-160.0,0.00013911,2]
[384807027,1757563832592,-160.0,0.00013911,2]
[384807028,1757563832601,-365.24879945,0.00013911,2]
[384807035,1757563838457,-51.9059284,0.00013911,2]
[384807036,1757563838467,-528.32718804,0.00013911,2]
[384807037,1757563838478,-2.63248228,0.00013911,2]
[384807038,1757563838487,-160.0,0.00013911,2]
[384807039,1757563838497,-846.96613202,0.00013912,2]
[384807040,1757563838506,-233.10680167,0.00013912,2]
[384807041,1757563838516,-160.0,0.00013912,2]
[384807043,1757563838525,-160.0,0.00013912,2]
[384807045,1757563838534,-160.0,0.00013912,2]
[384807046,1757563838542,-160.0,0.00013912,2]
[384807047,1757563838551,-480.0,0.00013912,2]
[384807048,1757563838561,-480.0,0.00013912,2]
[384807049,1757563838570,-229.58197598,0.00013912,2]
[384807050,1757563838585,-251.24381403,0.00013912,2]
[384807051,1757563838595,-480.0,0.00013912,2]
[384807052,1757563838604,-480.72185086,0.00013913,2]
[384807053,1757563838614,-204.90909994,0.00013913,2]
[384807054,1757563838624,-4027.44,0.00013913,2]
[384807056,1757563838633,-500.0,0.00013914,2]
[384807058,1757563838643,-516.74781011,0.00013914,2]
[384807060,1757563838652,-141.25121864,0.00013914,2]
[384807061,1757563838663,-88.22454407,0.00013914,2]
[384807062,1757563838672,-480.0,0.00013914,2]
[384807063,1757563838682,-351.77545593,0.00013914,2]
[384807064,1757563838693,-434.55454407,0.00013914,2]
[384807065,1757563838702,-528.66,0.00013914,2]
[384807066,1757563838711,-480.0,0.00013914,2]
[384807067,1757563838720,-480.0,0.00013914,2]
[384807068,1757563838729,-480.0,0.00013914,2]
[384807069,1757563838739,-418.10955573,0.00013914,2]
[384807070,1757563838749,-480.0,0.00013914,2]
[384807071,1757563838758,-67.28053189,0.00013914,2]
[384807078,1757563840601,-217.69300629,0.00013911,2]
[384807079,1757563840610,-26536.93443022,0.00013912,2]
[384807080,1757563842504,168.0,0.00013772,2]
[384807085,1757563843564,-5383.5,0.00013912,2]
[384807089,1757563846563,-1511.6995102,0.00013912,2]
[384807090,1757563846573,-412.71946811,0.00013914,2]
[384807091,1757563846582,-502.26,0.00013914,2]
[384807092,1757563846592,-480.0,0.00013914,2]
[384807093,1757563846601,-480.0,0.00013914,2]
[384807094,1757563846610,-299.42436312,0.00013915,2]
[384807095,1757563846619,-500.0,0.00013915,2]
[384807096,1757563846628,-500.0,0.00013915,2]
[384807097,1757563846638,-500.0,0.00013915,2]
[384807098,1757563846647,-500.0,0.00013915,2]
[384807099,1757563846656,-172.28912431,0.00013915,2]
[384807100,1757563846665,-389.63672155,0.00013915,2]
[384807101,1757563846674,-500.0,0.00013915,2]
[384807102,1757563846683,-500.0,0.00013915,2]
[384807103,1757563846692,-500.0,0.00013915,2]
[384807104,1757563846702,-500.0,0.00013915,2]
[384807105,1757563846711,-500.0,0.00013915,2]
[384807106,1757563846720,-560.90404659,0.00013915,2]
[384807107,1757563846729,-590.32593038,0.00013915,2]
[384807108,1757563846738,-500.0,0.00013915,2]
[384807109,1757563846747,-500.0,0.00013915,2]
[384807110,1757563846757,-500.0,0.00013915,2]
[384807111,1757563846766,-500.0,0.00013915,2]
[384807112,1757563846775,-500.0,0.00013915,2]
[384807113,1757563846784,-267.09528283,0.00013915,2]
[384807114,1757563846794,-500.0,0.00013915,2]
[384807115,1757563846803,-500.0,0.00013915,2]
[384807116,1757563846812,-500.0,0.00013915,2]
[384807117,1757563846821,-500.0,0.00013915,2]
[384807118,1757563846830,-500.0,0.00013915,2]
[384807119,1757563846839,-500.0,0.00013915,2]
[384807120,1757563846848,-500.0,0.00013915,2]
[384807121,1757563846858,-500.0,0.00013915,2]
[384807122,1757563846867,-500.0,0.00013915,2]
[384807123,1757563846876,-500.0,0.00013915,2]
[384807124,1757563846886,-160.65510567,0.00013915,2]
[384807125,1757563846894,-500.0,0.00013915,2]
[384807126,1757563846903,-500.0,0.00013915,2]
[384807127,1757563846913,-500.0,0.00013915,2]
[384807129,1757563846922,-500.0,0.00013915,2]
[384807130,1757563846931,-500.0,0.00013915,2]
[384807131,1757563846941,-500.0,0.00013915,2]
[384807133,1757563846950,-553.74893503,0.00013915,2]
[384807134,1757563846959,-425.64776105,0.00013915,2]
[384807135,1757563846968,-500.0,0.00013915,2]
[384807136,1757563846978,-500.0,0.00013915,2]
[384807137,1757563846987,-500.0,0.00013915,2]
[384807138,1757563846997,-500.0,0.00013915,2]
[384807139,1757563847008,-500.0,0.00013915,2]
[384807140,1757563847017,-500.0,0.00013915,2]
[384807141,1757563847029,-500.0,0.00013915,2]
[384807142,1757563847040,-500.0,0.00013915,2]
[384807143,1757563847049,-500.0,0.00013915,2]
[384807144,1757563847058,-500.0,0.00013915,2]
[384807145,1757563847067,-500.0,0.00013915,2]
[384807146,1757563847078,-500.0,0.00013915,2]
[384807147,1757563847088,-500.0,0.00013915,2]
[384807148,1757563847098,-500.0,0.00013915,2]
[384807149,1757563847108,-500.0,0.00013915,2]
[384807150,1757563847118,-500.0,0.00013915,2]
[384807151,1757563847127,-500.0,0.00013915,2]
[384807152,1757563847137,-500.0,0.00013915,2]
[384807153,1757563847146,-500.0,0.00013915,2]
[384807154,1757563847155,-500.0,0.00013915,2]
[384807155,1757563847164,-500.0,0.00013915,2]
[384807156,1757563847174,-331.84182786,0.00013916,2]
[384807157,1757563847183,-455.05942806,0.00013916,2]
[384807158,1757563847193,-482.86619873,0.00013916,2]
[384807159,1757563847202,-480.0,0.00013916,2]
[384807160,1757563847211,-480.0,0.00013916,2]
[384807161,1757563847220,-480.0,0.00013916,2]
[384807162,1757563847229,-480.0,0.00013916,2]
[384807163,1757563847238,-480.0,0.00013916,2]
[384807164,1757563847248,-532.36,0.00013916,2]
[384807165,1757563847258,-480.0,0.00013916,2]
[384807166,1757563847267,-480.0,0.00013916,2]
[384807167,1757563847276,-480.0,0.00013916,2]
[384807168,1757563847285,-480.0,0.00013916,2]
[384807169,1757563847294,-482.93186152,0.00013916,2]
[384807170,1757563847304,-480.0,0.00013916,2]
[384807171,1757563847313,-484.14202178,0.00013916,2]
[384807172,1757563847322,-480.0,0.00013916,2]
[384807173,1757563847331,-480.94619795,0.00013916,2]
[384807174,1757563847341,-536.91,0.00013916,2]
[384807175,1757563847350,-480.67674912,0.00013916,2]
[384807176,1757563847359,-482.57899697,0.00013916,2]
[384807177,1757563847368,-480.0,0.00013916,2]
[384807178,1757563847377,-482.39645998,0.00013916,2]
[384807179,1757563847387,-481.87390683,0.00013916,2]
[384807180,1757563847396,-481.48644906,0.00013916,2]
[384807181,1757563847405,-481.74985194,0.00013916,2]
[384807182,1757563847414,-483.22004687,0.00013916,2]
[384807183,1757563847424,-485.35445037,0.00013916,2]
[384807184,1757563847433,-480.0,0.00013916,2]
[384807185,1757563847443,-480.0,0.00013916,2]
[384807186,1757563847451,-482.83335024,0.00013916,2]
[384807187,1757563847461,-480.0,0.00013916,2]
[384807188,1757563847470,-480.0,0.00013916,2]
[384807189,1757563847480,-480.0,0.00013916,2]
[384807190,1757563847489,-482.13800818,0.00013916,2]
[384807191,1757563847499,-484.87464054,0.00013916,2]
[384807192,1757563847509,-480.0,0.00013916,2]
[384807193,1757563847518,-519.94467525,0.00013916,2]
[384807194,1757563847527,-480.0,0.00013916,2]
[384807195,1757563847537,-483.68772559,0.00013916,2]
[384807196,1757563847547,-480.92388853,0.00013916,2]
[384807197,1757563847559,-445.26589768,0.00013916,2]
[384807198,1757563847568,-480.0,0.00013916,2]
[384807199,1757563847579,-301.58532875,0.00013916,2]
[384807200,1757563847588,-480.0,0.00013916,2]
[384807201,1757563847597,-483.17530636,0.00013916,2]
[384807202,1757563847607,-486.03271918,0.00013916,2]
[384807203,1757563847616,-482.62999373,0.00013916,2]
[384807204,1757563847625,-481.29760822,0.00013916,2]
[384807205,1757563847635,-481.67666869,0.00013916,2]
[384807206,1757563847644,-480.0,0.00013916,2]
[384807207,1757563847653,-480.0,0.00013916,2]
[384807208,1757563847662,-500.01,0.00013916,2]
[384807209,1757563847671,-485.89672895,0.00013916,2]
[384807210,1757563847681,-482.76481154,0.00013916,2]
[384807211,1757563847690,-481.72326131,0.00013916,2]
[384807212,1757563847699,-480.0,0.00013916,2]
[384807213,1757563847708,-480.0,0.00013916,2]
[384807214,1757563847718,-485.05256717,0.00013916,2]
[384807215,1757563847727,-480.0,0.00013916,2]
[384807216,1757563847736,-505.28633981,0.00013916,2]
[384807217,1757563847746,-483.9005149,0.00013916,2]
[384807218,1757563847755,-480.0,0.00013916,2]
[384807219,1757563847764,-482.00191692,0.00013916,2]
[384807220,1757563847775,-480.0,0.00013916,2]
[384807221,1757563847785,-482.76603901,0.00013916,2]
[384807222,1757563847795,-480.0,0.00013916,2]
[384807223,1757563847805,-480.0,0.00013916,2]
[384807224,1757563847814,-483.42436655,0.00013916,2]
[384807225,1757563847823,-480.0,0.00013916,2]
[384807226,1757563847832,-483.34726348,0.00013916,2]
[384807227,1757563847841,-485.6269301,0.00013916,2]
[384807228,1757563847850,-480.0,0.00013916,2]
[384807229,1757563847860,-923.68,0.00013916,2]
[384807230,1757563847869,-480.0,0.00013916,2]
[384807231,1757563847878,-483.95896667,0.00013916,2]
[384807232,1757563847887,-480.0,0.00013916,2]
[384807233,1757563847896,-484.22649972,0.00013916,2]
[384807234,1757563847905,-480.0,0.00013916,2]
[384807235,1757563847915,-495.20892128,0.00013916,2]
[384807236,1757563847924,-480.0,0.00013916,2]
[384807237,1757563847933,-480.0,0.00013916,2]
[384807238,1757563847942,-480.0,0.00013916,2]
[384807239,1757563847953,-1972.95,0.00013916,2]
[384807240,1757563847962,-480.0,0.00013916,2]
[384807241,1757563847971,-485.92841393,0.00013916,2]
[384807242,1757563847981,-612.88,0.00013916,2]
[384807243,1757563847990,-481.6093213,0.00013916,2]
[384807244,1757563848000,-480.0,0.00013916,2]
[384807245,1757563848010,-480.0,0.00013916,2]
[384807246,1757563848020,-482.35013462,0.00013916,2]
[384807247,1757563848033,-169.25,0.00013916,2]
[384807248,1757563848042,-480.0,0.00013916,2]
[384807249,1757563848052,-484.10512135,0.00013916,2]
[384807250,1757563848062,-480.0,0.00013916,2]
[384807251,1757563848071,-480.0,0.00013916,2]
[384807252,1757563848081,-480.0,0.00013916,2]
[384807253,1757563848090,-480.0,0.00013916,2]
[384807254,1757563848100,-483.97516829,0.00013916,2]
[384807255,1757563848111,-480.0,0.00013916,2]
[384807256,1757563848121,-536.2,0.00013916,2]
[384807257,1757563848130,-480.0,0.00013916,2]
[384807258,1757563848140,-480.0,0.00013916,2]
[384807259,1757563848149,-480.0,0.00013916,2]
[384807260,1757563848159,-482.86392232,0.00013916,2]
[384807261,1757563848168,-157.26,0.00013916,2]
[384807262,1757563848178,-480.0,0.00013916,2]
[384807263,1757563848187,-785.06,0.00013916,2]
[384807264,1757563848196,-480.0,0.00013916,2]
[384807265,1757563848205,-480.0,0.00013916,2]
[384807266,1757563848215,-210.52721413,0.00013916,2]
[384807267,1757563848225,-480.0,0.00013916,2]
[384807268,1757563848234,-483.17530101,0.00013916,2]
[384807269,1757563848243,-590.02,0.00013916,2]
[384807270,1757563848253,-480.0,0.00013916,2]
[384807271,1757563848262,-484.88993636,0.00013916,2]
[384807272,1757563848272,-486.11289098,0.00013916,2]
[384807273,1757563848281,-480.0,0.00013916,2]
[384807274,1757563848291,-480.0,0.00013916,2]
[384807275,1757563848300,-500.0,0.00013916,2]
[384807276,1757563848310,-481.15488604,0.00013916,2]
[384807277,1757563848319,-461.92189587,0.00013916,2]
[384807278,1757563848328,-480.0,0.00013916,2]
[384807279,1757563848337,-480.0,0.00013917,2]
[384807280,1757563848346,-480.0,0.00013917,2]
[384807281,1757563848355,-480.0,0.00013917,2]
[384807282,1757563848365,-2036.63,0.00013917,2]
[384807283,1757563848374,-480.0,0.00013917,2]
[384807284,1757563848383,-480.0,0.00013917,2]
[384807285,1757563848492,-480.0,0.00013917,2]
[384807286,1757563848502,-480.0,0.00013918,2]
[384807287,1757563848512,-263.33387479,0.00013918,2]
[384807288,1757563848521,-480.0,0.00013918,2]
[384807289,1757563848531,-481.69194912,0.00013918,2]
[384807290,1757563848540,-480.0,0.00013918,2]
[384807291,1757563848549,-480.0,0.00013918,2]
[384807292,1757563848558,-480.0,0.00013918,2]
[384807293,1757563848568,-480.0,0.00013918,2]
[384807294,1757563848577,-480.0,0.00013918,2]
[384807295,1757563848586,-500.0,0.00013918,2]
[384807296,1757563848595,-500.0,0.00013918,2]
[384807297,1757563848605,-500.0,0.00013918,2]
[384807298,1757563848614,-500.0,0.00013918,2]
[384807299,1757563848623,-500.0,0.00013918,2]
[384807300,1757563848633,-480.0,0.00013918,2]
[384807301,1757563848642,-480.0,0.00013918,2]
[384807302,1757563848651,-480.0,0.00013918,2]
[384807303,1757563848660,-480.0,0.00013918,2]
[384807304,1757563848669,-480.0,0.00013918,2]
[384807305,1757563848679,-480.0,0.00013918,2]
[384807306,1757563848688,-480.0,0.00013918,2]
[384807307,1757563848697,-480.0,0.00013918,2]
[384807308,1757563848707,-480.0,0.00013918,2]
[384807309,1757563848716,-493.18379263,0.00013918,2]
[384807310,1757563848725,-480.0,0.00013918,2]
[384807311,1757563848734,-480.0,0.00013918,2]
[384807312,1757563848743,-480.0,0.00013918,2]
[384807313,1757563848752,-480.0,0.00013918,2]
[384807314,1757563848762,-481.95940488,0.00013918,2]
[384807315,1757563848771,-480.0,0.00013918,2]
[384807316,1757563848780,-480.0,0.00013918,2]